Cogmind - Beta 13 @@@ ROGUE MODE // 2024.05.30 @ 12:59:53 Player: saltine Result: Destroyed by G-34 Mercenary with Small Laser Performance ------------- Evolutions (1) 500 Regions Visited (3) 600 Robots Destroyed (17) 85 Value Destroyed (439) 439 Prototype IDs (0) 0 Alien Tech Used (0) 0 Bonus (0) 0 TOTAL SCORE: 1624 Bonus ------- None Cogmind --------- Core Integrity 0/400 Matter 300/300 Energy 100/100 System Corruption 0% Temperature Cool (6) Movement Core (1350) Ox26 Location -9/Mines Parts ------- > --- POWER (1) -------- (None) > --- PROPULSION (3) --- Flight Unit > --- UTILITY (3) ------ Huge Storage Unit > --- WEAPON (2) ------- (None) > --- INVENTORY (25) --- Ion Engine Ion Engine Peak State ------------ > --- POWER ------------ Ion Engine > --- PROPULSION ------- Light Treads Light Treads > --- UTILITY ---------- Small Storage Unit Huge Storage Unit > --- WEAPON ----------- Assault Rifle Light Assault Rifle > --- INVENTORY -------- Light Ion Engine Light Assault Rifle [Rating: 7] Favorites ----------- Power Ion Engine Engine Ion Engine Propulsion Light Treads Treads Light Treads Leg Aluminum Leg Wheel Compact Wheel Flight Unit Flight Unit Utility Huge Storage Unit Device Terrain Scanner Storage Huge Storage Unit Weapon Light Assault Rifle Energy Gun Small Laser Ballistic Gun Light Assault Rifle Build | -11 -10 -9 -9 ------- Run | Yrd Mat Mat Min Slots Evolved 2 | . . 2 . Power . | . . . . Propulsion 1 | . . 1 . Utility 1 | . . 1 . Weapon . | . . . . Parts Attached 22 | 6 1 9 6 Power 4 | 1 . 2 1 Engine 4 | 1 . 2 1 Core . | . . . . Reactor . | . . . . Propulsion 10 | 2 . 5 3 Treads 2 | 2 . . . Leg 2 | . . . 2 Wheel 3 | . . 3 . Hover . | . . . . Flight 3 | . . 2 1 Utility 4 | 1 1 1 1 Device 1 | . . 1 . Storage 3 | 1 1 . 1 Processor . | . . . . Hackware . | . . . . Protection . | . . . . Artifact . | . . . . Weapon 4 | 2 . 1 1 Energy Gun 1 | . . . 1 Energy Cannon . | . . . . Ballistic Gun 3 | 2 . 1 . Ballistic Cannon . | . . . . Launcher . | . . . . Special Weapon . | . . . . Impact Weapon . | . . . . Slashing Weapon . | . . . . Piercing Weapon . | . . . . Special Melee Weapon . | . . . . Unidentified Prototypes . | . . . . Parts Lost 14 | . . 9 5 Power 3 | . . 2 1 Propulsion 6 | . . 3 3 Utility 1 | . . 1 . Weapon 4 | . . 3 1 Highest Loss Streak 5 | . . 5 4 To Critical Strikes 1 | . . 1 . Average Slot Usage (%) 65 | . 85 67 45 Engine 11 | . 14 10 10 Treads 14 | . 28 16 . Leg 1 | . . . 4 Wheel 9 | . . 1 25 Flight 1 | . . 3 . Device 2 | . . 9 . Storage 8 | . 14 8 2 Ballistic Gun 15 | . 28 17 . Naked Turns . | . . . . Heaviest Build 89 | 13 88 89 86 Greatest Support 48 | 40 40 48 48 Greatest Overweight (x) 28 | 1 2 2 28 Average Overweight (x) 1 | . 1 . 1 Largest Inventory Capacity 25 | 8 25 25 25 Average Capacity 17 | 7 24 20 10 Most Carried 5 | 2 4 5 3 Average Carried 2 | 1 3 3 2 Final Capacity 25 | 8 25 5 25 Final Carried 4 | 2 4 2 2 Class Distribution -------------------- 92% | Mutant 7% | Scavenger-Mutant Dominant Class ---------------- Mutant | -10/Materials Mutant | -9/Materials Mutant | -9/Mines Resources | -11 -10 -9 -9 ----------- Run | Yrd Mat Mat Min Matter Collected 641 | 260 100 158 123 Remotely . | . . . . Salvage Created 610 | . 235 307 68 Parts 35 | . 16 14 5 Haulers Intercepted . | . . . . Recyclers Shooed 1 | . 1 . . Parts Field Recycled . | . . . . Retrieved Matter . | . . . . Parts Self-Destructed . | . . . . Prevented . | . . . . Kills | -11 -10 -9 -9 ------- Run | Yrd Mat Mat Min Combat Hostiles Destroyed 13 | . 4 7 2 Guns 13 | . 4 7 2 Classes Destroyed 5 | . 5 . . Builder 2 | . 2 . . Recycler 1 | . 1 . . Operator 1 | . 1 . . Swarmer 2 | . 2 . . Grunt 11 | . 2 7 2 Best Kill Streak 2 | . 2 2 2 Combat Bots Only 2 | . 2 2 2 Max Kills in Single Turn 1 | . 1 1 1 Gunslinging . | . . . . Exploded . | . . . . Melee . | . . . . Uniques/NPCs Destroyed . | . . . . Combat | -11 -10 -9 -9 -------- Run | Yrd Mat Mat Min Hostile Shots Fired 204 | . 28 111 65 Missed 54 | . 6 29 19 Damage Taken 1654 | . 181 967 506 Core 426 | . 26 278 122 Absorbed by Shields . | . . . . Core Remaining (%) 94 | 100 89 . . Volleys Fired 85 | . 31 49 5 Largest 2 | . 2 2 1 Hottest 40 | . 40 40 40 Shots Fired 152 | . 62 85 5 Gun 152 | . 62 85 5 Cannon . | . . . . Launcher . | . . . . Special . | . . . . Kinetic 147 | . 62 85 . Thermal 5 | . . . 5 Explosive . | . . . . Electromagnetic . | . . . . Robot Hit Streak 13 | . 5 8 13 Robot Miss Streak 9 | . 9 3 . Penetration Max . | . . . . Secondary Targets 1 | . . 1 . Max Gunslinging Chain 1 | . . 1 . Shots Hit Robots 92 | . 29 58 5 Core Hits 35 | . 14 17 4 Critical Kills . | . . . . Critical Parts Destroyed . | . . . . Critical Strikes . | . . . . Melee Attacks . | . . . . Impact . | . . . . Slashing . | . . . . Piercing . | . . . . Sneak Attacks . | . . . . Combat Hostiles . | . . . . Follow-up Attacks . | . . . . Damage Inflicted 968 | . 319 585 64 Guns 956 | . 313 585 58 Cannons . | . . . . Explosions . | . . . . Melee . | . . . . Ramming 12 | . 6 . 6 Kinetic 898 | . 313 585 . Thermal 58 | . . . 58 Explosive . | . . . . Electromagnetic . | . . . . Impact . | . . . . Slashing . | . . . . Piercing . | . . . . Highest Corruption 2 | . 2 . . Average Corruption 2 | . 2 . . Corruption Purged . | . . . . Corruption Blocked . | . . . . Overload Shots . | . . . . Overflow Damage . | . . . . Projectiles . | . . . . Explosions . | . . . . Melee . | . . . . Knockbacks . | . . . . Impact . | . . . . Kinetic . | . . . . Secondary . | . . . . Self-Inflicted Damage 3 | . . . 3 Shots . | . . . . Rammed 2 | . 1 . 1 Targets Rammed 2 | . 1 . 1 Kicked . | . . . . Crushed . | . . . . Highest Temperature 15 | . . 15 9 Average Temperature 5 | . . 5 5 Received Heat Transfer 747 | . 24 447 276 Siege Activations . | . . . . Robots Corrupted . | . . . . Combat Hostiles . | . . . . Parts Fried . | . . . . Impact Corruptions . | . . . . Robots Melted . | . . . . Combat Hostiles . | . . . . Parts Melted . | . . . . Heat Transferred 125 | . . . 125 Parts Sabotaged . | . . . . Parts Stolen . | . . . . Parts Stripped . | . . . . Power Chain Reactions . | . . . . Alert | -11 -10 -9 -9 ------- Run | Yrd Mat Mat Min Peak Influence 193 | . 145 193 47 Initial 17 | . . 8 17 Average 45 | . 55 80 13 Maximum Alert Level . | . . . . Low Security (%) 100 | 100 100 100 100 Level 1 . | . . . . Level 2 . | . . . . Level 3 . | . . . . Level 4 . | . . . . Level 5 . | . . . . High Security . | . . . . Max Security . | . . . . Squads Dispatched 8 | . 2 6 . Investigation 1 | . . 1 . Extermination . | . . . . Reinforcement 7 | . 2 5 . Assault . | . . . . Garrison . | . . . . Intercept . | . . . . Searches Triggered . | . . . . Construction Impeded . | . . . . Haulers Reinforced . | . . . . Active Scanning Responses . | . . . . Cargo Convoy Interrupts . | . . . . Stealth | -11 -10 -9 -9 --------- Run | Yrd Mat Mat Min Distress Signals 2 | . 1 1 . Communications Jammed . | . . . . Distress Signals . | . . . . Times Spotted 38 | . 13 20 5 Peak Tracking Total 8 | . 3 8 3 Tactical Retreats 3 | . 1 2 . Traps | -11 -10 -9 -9 ------- Run | Yrd Mat Mat Min Traps Triggered 1 | . 1 . . Indirectly . | . . . . Trap Hack Attempts . | . . . . Triggered . | . . . . Disarmed . | . . . . Reprogrammed . | . . . . Reused . | . . . . Traps Extracted . | . . . . Installed . | . . . . Triggered . | . . . . Machines | -11 -10 -9 -9 ---------- Run | Yrd Mat Mat Min Machines Disabled . | . . . . Max in Single Turn . | . . . . Machines Repaired . | . . . . Machines Dismantled . | . . . . Machines Sabotaged . | . . . . Overloaded Fab Kills . | . . . . Hacking | -11 -10 -9 -9 --------- Run | Yrd Mat Mat Min Machines Accessed 3 | . 1 2 . Terminals 3 | . 1 2 . Fabricators . | . . . . Repair Stations . | . . . . Recycling Units . | . . . . Scanalyzers . | . . . . Garrison Access . | . . . . Total Hacks 5 | . 1 4 . Successful 1 | . . 1 . Failed 4 | . 1 3 . Catastrophic 2 | . 1 1 . Database Lockouts . | . . . . Manual 4 | . 1 3 . Terminals 5 | . 1 4 . Fabricators . | . . . . Repair Stations . | . . . . Recycling Units . | . . . . Scanalyzers . | . . . . Garrison Access . | . . . . Terminal Hacks 1 | . . 1 . Recall Reinforcements 1 | . . 1 . Fabricator Hacks . | . . . . Repair Station Hacks . | . . . . Recycling Unit Hacks . | . . . . Scanalyzer . | . . . . Garrison Access Hacks . | . . . . Unauthorized Hacks . | . . . . Terminals . | . . . . Fabricators . | . . . . Repair Stations . | . . . . Recycling Units . | . . . . Scanalyzers . | . . . . Garrison Access . | . . . . Data Cores Recovered . | . . . . Used . | . . . . Hacking Detections 3 | . 1 2 . Full Trace Events 1 | . . 1 . Feedback Events . | . . . . Feedback Blocked . | . . . . Robot Schematics Acquired . | . . . . Robots Built . | . . . . Authchips . | . . . . Time . | . . . . Total Robot Build Rating . | . . . . Part Schematics Acquired . | . . . . Parts Built . | . . . . Authchips . | . . . . Time . | . . . . Total Part Build Rating . | . . . . Parts Repaired . | . . . . Time . | . . . . Parts Recycled . | . . . . Recycled Matter . | . . . . Retrieved Matter . | . . . . Retrieved Components . | . . . . Parts Scanalyzed . | . . . . Part Schematics Acquired . | . . . . Parts Damaged . | . . . . Bothacking | -11 -10 -9 -9 ------------ Run | Yrd Mat Mat Min Used RIF Installer . | . . . . Robots Hacked . | . . . . Non-combat . | . . . . Combat . | . . . . Robot Hacks Applied . | . . . . Relay Couplers Released . | . . . . Fabnet Peak Effective % . | . . . . Robots Rewired . | . . . . Allies Hacked . | . . . . Hacks Repelled . | . . . . Allies | -11 -10 -9 -9 -------- Run | Yrd Mat Mat Min Total Allies . | . . . . Largest Group . | . . . . Highest-Rated Group . | . . . . Highest-Rated Ally . | . . . . Total Orders . | . . . . Ally Attacks . | . . . . Total Damage . | . . . . Kills . | . . . . Allies Corrupted . | . . . . Allies Melted . | . . . . Intel | -11 -10 -9 -9 ------- Run | Yrd Mat Mat Min Robot Analysis Total . | . . . . Derelict Logs Recovered 1 | . . . 1 Drone Launches . | . . . . Drone Recoveries . | . . . . Exploration | -11 -10 -9 -9 ------------- Run | Yrd Mat Mat Min Turns Passed 1533 | 82 509 422 520 Spaces Moved 484 | 48 139 203 94 Core 6 | 5 . . 1 Treads 249 | 43 139 67 . Legs 25 | . . . 25 Wheels 80 | . . 12 68 Hover . | . . . . Flight 124 | . . 124 . Fastest Speed 37 | 50 160 37 100 Average Speed 199 | 150 300 140 200 Slowest Speed 1450 | 160 320 320 1450 Overloaded Moves . | . . . . Propulsion Burnouts . | . . . . Robots Hopped 2 | . . 2 . Cave-ins Triggered . | . . . . Exploration Rate (%) 18 | 4 28 20 20 Regions Visited 3 Branch Regions 1 Pre-discovered Areas . | . . . . Known Exits Taken . | . . . . Unknown Exits Taken 3 | 1 1 1 . Scrap Searched . | . . . . Spaces Dug . | . . . . Terrain Destroyed . | . . . . Melee . | . . . . Projectile . | . . . . AOE . | . . . . Terrain Rammed . | . . . . Walls Destroyed . | . . . . Machines Disabled . | . . . . Actions | -11 -10 -9 -9 --------- Run | Yrd Mat Mat Min Total 917 | 55 174 261 427 Wait 318 | . . . 318 Move 477 | 47 138 198 94 Hop 2 | . . 2 . Pick Up 6 | 2 2 1 1 Fast Attach 14 | 6 1 4 3 Attach 7 | . . 5 2 Detach 2 | . . 2 . Swap 1 | . . . 1 Drop 3 | . 1 . 2 Fire 85 | . 31 49 5 Melee . | . . . . Ram 1 | . . . 1 Kick . | . . . . Crush 1 | . 1 . . Escape Stasis . | . . . . Rewire . | . . . . Trap . | . . . . Miscellaneous . | . . . . Route ------- -11/Scrapyard -10/Materials (discovered 2 exits: *Mat / [*Min]) -9/Materials -9/Mines (discovered 1 exit: Mat) History --------- Turn | Location | Event 22 | -11/Scrapyard | Discovered new exit (range 15) 83 | -11/Scrapyard | Entered Materials 268 | -10/Materials | Discovered new exit (range 7) 304 | -10/Materials | Build established: Mutant 523 | -10/Materials | Discovered new exit (range 14) 592 | -10/Materials | Entered another Materials area 592 | -9/Materials | Evolved 2 slots: Propulsion x1, Utility x1 945 | -9/Materials | Lost 5 parts (1p2n2w) 966 | -9/Materials | Core integrity fell below 50% 995 | -9/Materials | Discovered new exit (range 14) 1014 | -9/Materials | Entered Mines 1016 | -9/Mines | Lost 4 parts (1p1n1u1w) 1074 | -9/Mines | Excavation squad dispatched 1074 | -9/Mines | A large section of the Mines collapsed 1324 | -9/Mines | Excavation squad dispatched 1484 | -9/Mines | Core integrity fell below 20% 1516 | -9/Mines | Identified exit to Materials 1534 | -9/Mines | Destroyed by G-34 Mercenary with Small Laser Last Messages --------------- 01410_ U-05 Engineer lays Concrete. 01411_ T-07 Excavator is excavating. 01411_ U-05 Engineer lays Concrete. 01415_ Acquired Aluminum Leg. 01415_ T-07 Excavator is excavating. 01416_ U-05 Engineer lays Concrete. 01416_ Dropped Com. Wheel. 01420_ T-07 Excavator is excavating. 01424_ Acquired Aluminum Leg. 01424_ U-05 Engineer lays Concrete. 01425_ Acquired 38 matter. 01433_ R-06 Scavenger collects Seismic Detector. 01443_ Acquired 50 matter. 01455_ Acquired 25 matter. 01463_ Acquired Ion Engine. 01516_ Acquired derelict log, extracted data. 01516_ Aluminum Leg destroyed. 01523_ Sml. Laser destroyed. 01526_ Aluminum Leg destroyed. 01529_ Ion Engine destroyed. Map ----- +----------------------------------------------------+ | ??????????????????????????????????????# ## #### | | ?????????????????????##???????????????# | | ????????????????????## ??????????????### """ | | ???????????????????## ???????????????### """ | | ??????????????????? ?????????????????## """ | | ??????????????????? ?????????????###### | | ????????????????????? ????????????## #### | | ??????????????????????# #?????????### #?##### | | ???????????????????????# #???????## #?????? | | ???????????????????????# #?????## #?????? | | ????????????????????????# ###### ##????? | | ?????????????????????????# %* ##???? | | ??????????????????????????# ### ##??? | | ??????????????????????????## ##?## ##?? | | ???????????????????????????## % #???# #?? | | ???????????????????????????## % ##???# #?? | | ??????????????????????????## ### !##????# ### | | ?????????????????????????## #### ##????# | | ?????????????????????????# ##?# #????# #### | | ?????????????????????????# #??# = ##???## ##??? | | ?????????????????????????# #??# =" #????####???? | | ?????????????????????????# #??# "#???????????? | | ?????????????????????????# #??## ! "#???????????? | | ?????????????????????????# g#??## #???????????? | | ????????????????????????##gg##?## #???????????? | | ????????????????????????#@ #??### # ?????????? | | ????????????????????????# #????#######????????? | | ????????????????????????# #???????????????????? | | ???????????????????????? #???????????????????? | | ????????????????????????# #???????????????????? | | ????????????????????????######???????????????????? | | ?????????????????????????????????????????????????? | | ?????????????????????????????????????????????????? | | ?????????????????????????????????????????????????? | | | | | | | | | | | | | | | | | | | | | | | | | | | | | | | | | +----------------------------------------------------+ Best States ------------- Heat Dissipation 28 Energy Generation 10 Energy Capacity 250 Matter Stores 300 Matter Capacity 300 Sight Range 16 Terrain Scan Range 14 Terrain Scan Density 10 Evasion (%) 62 Recoil Reduction 2 Item Schematics ----------------- None Robot Schematics ------------------ None Fabricated ------------ Nothing Alien Tech Used ----------------- None Achievements -------------- None Challenges ------------ None Game ------ Seed GreatDecoderUnit Manual? 0 Play Time 00:15:29 Cumulative 20.7 hours Start 2024.05.30 @ 12:46:28 End 2024.05.30 @ 12:59:53 Sessions 1 Manual Loads 0 Difficulty Rogue Special Mode None Game No. 33 Rogue 33 Adventurer 0 Explorer 0 Win Type - Total 0 Types 0/0/0/0/0/0/0/0/0 Lore% 7 Gallery% 29 Achievement% 19 Wizard Run 0 Options --------- Layout 1 ASCII 0 Keyboard 0 Movement Arrows Keybinds 0 Fullscreen 1 Font 16/SmallcapsGlow Map View 50x35 Zoom Use 0% Tactical HUD 1 Map Filters NONE Filters NONE Steam 1 RUN: 170bafa8-eaa9-4bfb-ae72-45994852790b